fUST/lending_fUST_20250723
["ID","MTS","AMOUNT","RATE_DAILY","PERIOD"]
[374093496,1753200005102,85.83513793,0.00016762,2]
[374093497,1753200005132,153.56486207,0.00016762,2]
[374093498,1753200006084,460.0,0.00016761,2]
[374093499,1753200009051,234.53106427,0.00016748,2]
[374093500,1753200014157,460.0,0.00016763,2]
[374093501,1753200018308,167.63284172,0.00016748,2]
[374093502,1753200021115,165.396926,0.00016034,2]
[374093503,1753200021331,165.396926,0.00016087,2]
[374093504,1753200021583,165.396926,0.0001614,2]
[374093505,1753200021943,165.396926,0.00016194,2]
[374093506,1753200022893,473.87018173,0.0001676,2]
[374093507,1753200029511,460.0,0.00016761,2]
[374093508,1753200029633,460.0,0.0001676,2]
[374093509,1753200031561,460.0,0.0001676,2]
[374093510,1753200037807,460.0,0.0001676,2]
[374093511,1753200039587,150.0,0.0001568,2]
[374093512,1753200040146,569.62,0.0001676,2]
[374093513,1753200040879,460.0,0.0001676,2]
[374093514,1753200042048,460.0,0.0001676,2]
[374093515,1753200044583,460.0,0.0001676,2]
[374093516,1753200050204,460.0,0.0001676,2]
[374093517,1753200052923,176.82329563,0.00016748,2]
[374093518,1753200053426,460.0,0.0001676,2]
[374093519,1753200059844,574.05996272,0.00016761,2]
[374093520,1753200066136,196.63568455,0.0001676,2]
[374093521,1753200066866,460.0,0.0001676,2]
[374093522,1753200068265,460.0,0.00016761,2]
[374093523,1753200073258,278.33657363,0.0001676,2]
[374093524,1753200074537,383.33782968,0.0001676,2]
[374093525,1753200074561,76.66217032,0.0001676,2]
[374093526,1753200075175,460.0,0.0001676,2]
[374093527,1753200078363,460.0,0.0001676,2]
[374093528,1753200085209,460.0,0.00016762,2]
[374093529,1753200087603,460.0,0.0001676,2]
[374093530,1753200106205,460.0,0.0001676,2]
[374093531,1753200115056,460.0,0.00016761,2]
[374093532,1753200117074,460.0,0.00016762,2]
[374093533,1753200118863,460.0,0.0001676,2]
[374093534,1753200120477,150.0,0.00015754,2]
[374093535,1753200127317,460.0,0.00016761,2]
[374093536,1753200131403,460.0,0.00016761,2]
[374093537,1753200152543,176.82329562,0.0001668,2]
[374093538,1753200153532,460.0,0.00016761,2]
[374093539,1753200171704,1112.687073,0.00016033,2]
[374093540,1753200172606,861.87,0.00016762,2]
[374093541,1753200172841,460.0,0.00016761,2]
[374093542,1753200173969,776.2630684,0.00016277,2]
[374093543,1753200174350,187.762735,0.00016277,2]
[374093544,1753200174724,294.2501667,0.0001652,2]
[374093545,1753200175195,460.0,0.00016761,2]
[374093546,1753200175435,383.68149096,0.0001676,2]
[374093547,1753200175464,76.31850904,0.0001676,2]
[374093548,1753200177316,790.05,0.00016762,2]
[374093549,1753200185977,460.0,0.00016761,2]
[374093550,1753200187810,793.04,0.00016761,2]
[374093551,1753200192175,5000.0,0.0001677,2]
[374093552,1753200193972,150.0,0.00014209,2]
[374093553,1753200194871,150.0,0.000155,2]
[374093554,1753200203359,460.0,0.0001676,2]
[374093555,1753200204296,1360.8114833,0.00016033,2]
[374093556,1753200207139,173.99,0.0001676,2]
[374093557,1753200208166,585.79000766,0.0001677,2]
[374093558,1753200208192,4414.20999234,0.0001677,2]
[374093559,1753200211281,460.0,0.0001676,2]
[374093560,1753200215333,460.0,0.00016762,2]
[374093561,1753200218700,460.0,0.00016761,2]
[374093562,1753200222361,460.0,0.00016761,2]
[374093563,1753200223996,3745.79000766,0.0001677,2]
[374093564,1753200224021,1254.20999234,0.0001677,2]
[374093565,1753200234231,460.0,0.0001676,2]
[374093566,1753200237006,460.0,0.00016761,2]
[374093567,1753200239151,5000.0,0.0001677,2]
[374093568,1753200239243,460.0,0.0001676,2]
[374093569,1753200257336,460.0,0.00016762,2]
[374093570,1753200257409,460.0,0.0001676,2]
[374093571,1753200258454,1445.79000766,0.0001677,2]
[374093572,1753200258480,3554.20999234,0.0001677,2]
[374093573,1753200259308,460.0,0.0001676,2]
[374093574,1753200262897,150.0,0.0001406,2]
[374093575,1753200263316,150.0,0.00015339,2]
[374093576,1753200263726,150.0,0.00016617,2]
[374093577,1753200264929,460.0,0.0001676,2]
[374093578,1753200273960,5000.0,0.0001677,2]
[374093579,1753200276297,75.79000766,0.00016761,2]
[374093580,1753200276323,384.20999234,0.00016761,2]
[374093581,1753200285562,760.0,0.00016761,2]
[374093582,1753200287766,225.24309434,0.00016762,2]
[374093583,1753200288833,460.0,0.0001676,2]
[374093584,1753200289289,5000.0,0.0001677,2]
[374093585,1753200290762,434.02922962,0.0001676,2]
[374093586,1753200304681,2736.5176837,0.0001677,2]
[374093587,1753200304706,2263.4823163,0.0001677,2]
[374093588,1753200322125,5000.0,0.0001677,2]
[374093589,1753200328142,728.33,0.00016762,2]
[374093590,1753200329179,150.0,0.00014424,2]
[374093591,1753200337353,1858.1876837,0.0001677,2]
[374093592,1753200337379,3141.8123163,0.0001677,2]
[374093593,1753200338251,460.0,0.0001676,2]
[374093594,1753200354999,5000.0,0.0001677,2]
[374093595,1753200373218,1398.1876837,0.0001677,2]
[374093596,1753200399667,1533.49,0.00024658,60]
[374093597,1753200406102,469.84038484,0.00016761,2]
[374093598,1753200407885,460.0,0.0001676,2]
[374093599,1753200408354,460.0,0.00016761,2]
[374093600,1753200411034,460.0,0.0001676,2]
[374093601,1753200416128,460.0,0.00016761,2]
[374093602,1753200419106,460.0,0.00016762,2]
[374093603,1753200421217,460.0,0.0001676,2]
[374093604,1753200424498,460.0,0.0001676,2]
[374093605,1753200443461,460.0,0.0001676,2]
[374093606,1753200445782,460.0,0.0001676,2]
[374093607,1753200457946,150.0,0.00015826,2]
[374093608,1753200461786,460.0,0.0001676,2]
[374093609,1753200468335,460.0,0.0001676,2]
[374093610,1753200471547,460.0,0.00016761,2]
[374093611,1753200475896,272.95268036,0.00016267,2]
[374093612,1753200490015,562.99378158,0.0001676,2]
[374093613,1753200496555,388.26188448,0.0001676,2]
[374093614,1753200509467,460.0,0.0001676,2]
[374093615,1753200524983,150.0,0.00014234,2]
[374093616,1753200525423,150.0,0.00015528,2]
[374093617,1753200538467,460.0,0.0001676,2]
[374093618,1753200555618,485.07,0.00016761,2]
[374093619,1753200557263,460.0,0.0001676,2]
[374093620,1753200558041,460.0,0.0001676,2]
[374093621,1753200559974,10.88126874,0.00016763,2]
[374093622,1753200560000,4989.11873126,0.00016763,2]
[374093623,1753200579851,5000.0,0.00016763,2]
[374093624,1753200580099,10.88126874,0.0001676,2]
[374093625,1753200580124,449.11873126,0.0001676,2]
[374093626,1753200590178,150.0,0.0001413,2]
[374093627,1753200594715,929.97,0.0001676,2]
[374093628,1753200596696,5000.0,0.00016763,2]
[374093632,1753200600229,460.0,0.0001676,2]
[374093633,1753200612413,3010.91126874,0.00016763,2]
[374093634,1753200612439,1989.08873126,0.00016763,2]
[374093635,1753200620084,460.0,0.0001676,2]
[374093636,1753200624858,464.86,0.00016761,2]
[374093637,1753200625013,460.0,0.0001676,2]
[374093638,1753200630215,460.0,0.00016761,2]
[374093639,1753200631439,5000.0,0.00016763,2]
[374093686,1753200632872,-953.38368452,0.0001678,2]
[374093688,1753200632884,-255.87357341,0.0001678,2]
[374093689,1753200632893,-152.85336732,0.00016849,2]
[374093691,1753200632903,-222.28765996,0.00016936,2]
[374093693,1753200632913,-412.0,0.00017031,2]
[374093695,1753200632925,-300.0,0.00017031,2]
[374093698,1753200632935,-300.0,0.00017031,2]
[374093700,1753200632945,-148.23115395,0.00017031,2]
[374093735,1753200634734,460.0,0.0001676,2]
[374093738,1753200638088,-1051.76884605,0.00017031,2]
[374093740,1753200638098,-906.94294345,0.00017031,2]
[374093742,1753200638110,-467.2584959,0.00017032,2]
[374093744,1753200638122,-460.0,0.00017032,2]
[374093745,1753200638133,-465.98036228,0.00017032,2]
[374093746,1753200638146,-460.0,0.00017032,2]
[374093747,1753200638160,-460.0,0.00017032,2]
[374093749,1753200638171,-460.0,0.00017032,2]
[374093751,1753200638188,-460.0,0.00017032,2]
[374093753,1753200638198,-460.0,0.00017032,2]
[374093755,1753200638211,-460.0,0.00017032,2]
[374093757,1753200638223,-371.1386155,0.00017032,2]
[374093760,1753200638249,-88.8613845,0.00017032,2]
[374093762,1753200638261,-565.95471825,0.00017032,2]
[374093764,1753200638273,-469.5103147,0.00017032,2]
[374093767,1753200638284,-460.0,0.00017032,2]
[374093769,1753200638295,-466.1381054,0.00017032,2]
[374093771,1753200638305,-460.0,0.00017032,2]
[374093773,1753200638315,-460.0,0.00017032,2]
[374093775,1753200638325,-460.0,0.00017032,2]
[374093777,1753200638336,-460.0,0.00017032,2]
[374093779,1753200638346,-460.0,0.00017032,2]
[374093781,1753200638357,-460.0,0.00017032,2]
[374093783,1753200638368,-460.0,0.00017032,2]
[374093786,1753200638383,-460.0,0.00017032,2]
[374093788,1753200638395,-460.0,0.00017032,2]
[374093790,1753200638406,-2934.53367656,0.00017032,2]
[374093792,1753200638421,-464.65604806,0.00017033,2]
[374093794,1753200638434,-460.0,0.00017033,2]
[374093796,1753200638447,-460.0,0.00017033,2]
[374093799,1753200638460,-563.48650561,0.00017033,2]
[374093801,1753200638469,-460.0,0.00017033,2]
[374093803,1753200638479,-460.0,0.00017033,2]
[374093805,1753200638489,-460.0,0.00017033,2]
[374093807,1753200638500,-460.0,0.00017033,2]
[374093809,1753200638511,-460.0,0.00017033,2]
[374093811,1753200638522,-460.89059097,0.00017033,2]
[374093813,1753200638533,-215.92478924,0.00017033,2]
[374093816,1753200638544,-460.0,0.00017033,2]
[374093818,1753200638555,-460.0,0.00017033,2]
[374093820,1753200638566,-380.39555208,0.00017033,2]
[374093822,1753200638577,-460.0,0.00017033,2]
[374093824,1753200638587,-460.0,0.00017033,2]
[374093826,1753200638597,-460.0,0.00017033,2]
[374093828,1753200638607,-460.0,0.00017033,2]
[374093830,1753200638618,-460.0,0.00017033,2]
[374093832,1753200638631,-460.0,0.00017033,2]
[374093834,1753200638642,-460.0,0.00017033,2]
[374093837,1753200638654,-460.0,0.00017033,2]
[374093839,1753200638674,-460.0,0.00017033,2]
[374093841,1753200638688,-460.0,0.00017033,2]
[374093844,1753200638700,-460.0,0.00017033,2]
[374093846,1753200638711,-460.0,0.00017033,2]
[374093848,1753200638723,-460.0,0.00017033,2]
[374093850,1753200638735,-460.0,0.00017033,2]
[374093852,1753200638746,-460.0,0.00017033,2]
[374093855,1753200638757,-460.0,0.00017033,2]
[374093857,1753200638768,-415.74493917,0.00017033,2]
[374093859,1753200638779,-460.0,0.00017033,2]
[374093861,1753200638790,-460.0,0.00017033,2]
[374093863,1753200638801,-460.0,0.00017033,2]
[374093865,1753200638812,-460.0,0.00017033,2]
[374093868,1753200638824,-460.0,0.00017033,2]
[374093870,1753200638834,-460.0,0.00017033,2]
[374093872,1753200638845,-460.0,0.00017033,2]
[374093874,1753200638856,-460.0,0.00017033,2]
[374093876,1753200638867,-460.0,0.00017033,2]
[374093878,1753200638878,-460.0,0.00017033,2]
[374093880,1753200638888,-460.0,0.00017033,2]
[374093883,1753200638899,-460.0,0.00017033,2]
[374093885,1753200638910,-310.55750851,0.00017033,2]
[374093887,1753200638920,-256.9066535,0.00017033,2]
[374093890,1753200638946,-203.0933465,0.00017033,2]
[374093892,1753200638956,-122.1666535,0.00017033,2]
[374093894,1753200638969,-337.8333465,0.00017033,2]
[374093897,1753200638980,-460.0,0.00017033,2]
[374093899,1753200638990,-460.0,0.00017033,2]
[374093901,1753200639001,-460.0,0.00017033,2]
[374093903,1753200639011,-460.0,0.00017033,2]
[374093905,1753200639021,-460.0,0.00017033,2]
[374093906,1753200639032,-460.0,0.00017033,2]
[374093908,1753200639043,-460.0,0.00017033,2]
[374093910,1753200639054,-460.0,0.00017034,2]
[374093912,1753200639065,-460.0,0.00017034,2]
[374093914,1753200639075,-460.0,0.00017034,2]
[374093916,1753200639086,-552.96923944,0.00017034,2]
[374093917,1753200639096,-460.0,0.00017034,2]
[374093918,1753200639107,-460.0,0.00017034,2]
[374093920,1753200639118,-460.0,0.00017034,2]
[374093922,1753200639128,-222.0253362,0.00017034,2]
[374093925,1753200639312,-242.7069384,0.00017034,2]
[374093926,1753200639322,-460.0,0.00017034,2]
[374093927,1753200639332,-500.0,0.00017034,2]
[374093928,1753200639342,-460.0,0.00017034,2]
[374093929,1753200639352,-460.0,0.00017034,2]
[374093930,1753200639362,-460.0,0.00017034,2]
[374093931,1753200639375,-460.0,0.00017034,2]
[374093932,1753200639385,-460.0,0.00017034,2]
[374093933,1753200639396,-460.0,0.00017034,2]
[374093934,1753200639407,-460.0,0.00017034,2]
[374093935,1753200639416,-460.0,0.00017034,2]
[374093936,1753200639426,-460.0,0.00017034,2]
[374093937,1753200639438,-262.67905008,0.00017034,2]
[374093973,1753200641467,-197.32094992,0.00017034,2]
[374093974,1753200641477,-460.0,0.00017034,2]
[374093975,1753200641486,-460.0,0.00017034,2]
[374093976,1753200641496,-460.0,0.00017034,2]
[374093977,1753200641506,-460.0,0.00017034,2]
[374093978,1753200641516,-609.89769128,0.00017034,2]
[374093979,1753200641525,-276.0201088,0.00017034,2]
[374093980,1753200641537,-44.2998912,0.00017034,2]
[374093981,1753200641547,-460.0,0.00017034,2]
[374093982,1753200641556,-460.0,0.00017034,2]
[374093983,1753200641565,-460.0,0.00017034,2]
[374093984,1753200641575,-458.4349488,0.00017034,2]
[374094024,1753200643481,-1.5650512,0.00017034,2]
[374094025,1753200643491,-347.14678119,0.00017034,2]
[374094026,1753200643501,-460.0,0.00017034,2]
[374094027,1753200643510,-460.0,0.00017034,2]
[374094028,1753200643520,-460.0,0.00017034,2]
[374094029,1753200643530,-460.0,0.00017034,2]
[374094030,1753200643539,-460.0,0.00017034,2]
[374094031,1753200643549,-460.0,0.00017034,2]
[374094032,1753200643558,-460.0,0.00017034,2]
[374094033,1753200643573,-460.0,0.00017034,2]
[374094034,1753200643592,-460.0,0.00017034,2]
[374094035,1753200643601,-460.0,0.00017034,2]
[374094036,1753200643610,-465.31798002,0.00017034,2]
[374094037,1753200643620,-929.97,0.00017034,2]
[374094038,1753200643630,-460.0,0.00017034,2]
[374094040,1753200643639,-460.0,0.00017034,2]
[374094042,1753200643648,-245.18074767,0.00017034,2]
[374094043,1753200643657,-469.81501702,0.00017034,2]
[374094044,1753200643666,-460.0,0.00017035,2]
[374094045,1753200643674,-460.0,0.00017035,2]
[374094046,1753200643685,-460.0,0.00017035,2]
[374094047,1753200643694,-460.0,0.00017035,2]
[374094048,1753200643703,-460.0,0.00017035,2]
[374094049,1753200643713,-460.0,0.00017035,2]
[374094050,1753200643722,-460.0,0.00017035,2]
[374094051,1753200643732,-460.0,0.00017035,2]
[374094052,1753200643742,-460.0,0.00017035,2]
[374094053,1753200643751,-460.0,0.00017035,2]
[374094054,1753200643760,-464.86,0.00017035,2]
[374094055,1753200643770,-460.0,0.00017035,2]
[374094056,1753200643779,-460.0,0.00017036,2]
[374094057,1753200643789,-396.4212236,0.00017036,2]
[374094058,1753200643798,-460.0,0.00017036,2]
[374094059,1753200643807,-460.0,0.00017036,2]
[374094060,1753200643816,-460.0,0.00017036,2]
[374094061,1753200643826,-163.46689188,0.00017036,2]
[374094062,1753200643839,-299.6900154,0.00017036,2]
[374094063,1753200643848,-460.0,0.00017036,2]
[374094064,1753200643858,-420.0,0.00017036,2]
[374094065,1753200643867,-460.0,0.00017036,2]
[374094066,1753200643877,-728.33,0.00017036,2]
[374094067,1753200643886,-460.0,0.00017036,2]
[374094068,1753200643896,-223.26711256,0.00017073,2]
[374094069,1753200643940,-328.1782816,0.00017073,2]
[374094070,1753200643950,-500.01914078,0.00017073,2]
[374094071,1753200643959,-500.0,0.00017073,2]
[374094072,1753200643968,-500.0,0.00017073,2]
[374094073,1753200643977,-500.0,0.00017073,2]
[374094074,1753200643985,-194.70518101,0.00017073,2]
[374094082,1753200646528,-305.29481899,0.00017073,2]
[374094083,1753200646539,-500.0,0.00017073,2]
[374094084,1753200646548,-500.0,0.00017073,2]
[374094085,1753200646558,-500.0,0.00017073,2]
[374094086,1753200646567,-304.97620169,0.00017073,2]
[374094087,1753200646577,-500.0,0.00017073,2]
[374094088,1753200646587,-500.0,0.00017073,2]
[374094089,1753200646597,-503.50332979,0.00017073,2]
[374094090,1753200646607,-504.30457904,0.00017073,2]
[374094091,1753200646616,-500.0,0.00017073,2]
[374094092,1753200646626,-460.0,0.00017306,2]
[374094093,1753200646646,-560.67393125,0.00017306,2]
[374094094,1753200646658,-460.0,0.00017306,2]
[374094095,1753200646668,-460.0,0.00017306,2]
[374094096,1753200646680,-460.0,0.00017306,2]
[374094097,1753200646691,-460.0,0.00017306,2]
[374094098,1753200646701,-460.0,0.00017306,2]
[374094099,1753200646711,-547.62851167,0.00017306,2]
[374094100,1753200646720,-460.0,0.00017306,2]
[374094101,1753200646731,-460.0,0.00017306,2]
[374094102,1753200646740,-163.22387918,0.00017307,2]
[374094103,1753200646750,-465.57787501,0.00017307,2]
[374094104,1753200646760,-460.0,0.00017307,2]
[374094105,1753200646770,-460.0,0.00017307,2]
[374094106,1753200646780,-460.0,0.00017307,2]
[374094107,1753200646789,-460.0,0.00017307,2]
[374094108,1753200646799,-460.0,0.00017307,2]
[374094109,1753200646809,-460.0,0.00017307,2]
[374094110,1753200646818,-460.0,0.00017307,2]
[374094111,1753200646828,-460.0,0.00017307,2]
[374094112,1753200646838,-521.88,0.00017307,2]
[374094113,1753200646847,-460.0,0.00017307,2]
[374094114,1753200646857,-460.0,0.00017307,2]
[374094115,1753200646867,-460.0,0.00017307,2]
[374094116,1753200646877,-460.0,0.00017307,2]
[374094117,1753200646886,-460.0,0.00017307,2]
[374094118,1753200646896,-472.6409117,0.00017307,2]
[374094119,1753200646906,-460.0,0.00017307,2]
[374094120,1753200646915,-460.0,0.00017307,2]
[374094121,1753200646925,-460.0,0.00017307,2]
[374094122,1753200646935,-460.0,0.00017307,2]
[374094123,1753200646945,-460.0,0.00017308,2]
[374094124,1753200646955,-460.0,0.00017308,2]
[374094125,1753200646964,-460.0,0.00017308,2]
[374094126,1753200646974,-460.0,0.00017308,2]
[374094127,1753200646983,-460.0,0.00017308,2]
[374094128,1753200646993,-460.0,0.00017308,2]
[374094129,1753200647003,-460.0,0.00017308,2]
[374094130,1753200647012,-460.0,0.00017308,2]
[374094131,1753200647022,-460.0,0.00017308,2]
[374094132,1753200647031,-202.86026692,0.00017308,2]
[374094133,1753200647041,-460.0,0.00017308,2]
[374094134,1753200647051,-460.0,0.00017308,2]
[374094135,1753200647061,-460.0,0.00017308,2]
[374094136,1753200647071,-460.0,0.00017308,2]
[374094137,1753200647081,-460.0,0.00017308,2]
[374094138,1753200647090,-460.0,0.00017308,2]
[374094139,1753200647100,-420.77053511,0.00017308,2]
[374094140,1753200647110,-460.0,0.00017308,2]
[374094141,1753200647119,-460.0,0.00017308,2]
[374094142,1753200647129,-460.0,0.00017308,2]
[374094143,1753200647140,-460.0,0.00017308,2]
[374094144,1753200647150,-460.0,0.00017308,2]
[374094145,1753200647160,-460.0,0.00017308,2]
[374094146,1753200647170,-154.12427463,0.00017308,2]
[374094147,1753200647180,-460.0,0.00017308,2]
[374094148,1753200647191,-929.97,0.00017308,2]
[374094149,1753200647202,-460.0,0.00017308,2]
[374094150,1753200647213,-460.0,0.00017308,2]
[374094151,1753200647224,-460.0,0.00017309,2]
[374094152,1753200647234,-460.0,0.00017309,2]
[374094153,1753200647244,-460.0,0.00017309,2]
[374094154,1753200647254,-460.0,0.00017309,2]
[374094155,1753200647265,-464.98302714,0.00017309,2]
[374094156,1753200647275,-371.99443675,0.00017309,2]
[374094157,1753200647285,-460.0,0.00017309,2]
[374094158,1753200647295,-460.0,0.00017309,2]
[374094159,1753200647305,-464.86,0.00017309,2]
[374094160,1753200647314,-460.0,0.00017309,2]
[374094161,1753200647324,-517.22875418,0.0001731,2]
[374094162,1753200647334,-463.57783478,0.0001731,2]
[374094163,1753200647344,-460.0,0.0001731,2]
[374094164,1753200647354,-465.32982639,0.0001731,2]
[374094165,1753200647367,-460.0,0.0001731,2]
[374094166,1753200647378,-728.33,0.0001731,2]
[374094167,1753200647388,-460.0,0.0001731,2]
[374094168,1753200647397,-460.0,0.0001758,2]
[374094169,1753200647408,-460.0,0.0001758,2]
[374094170,1753200647418,-460.0,0.0001758,2]
[374094171,1753200647428,-532.5533407,0.0001758,2]
[374094172,1753200647438,-460.0,0.0001758,2]
[374094173,1753200647449,-460.0,0.0001758,2]
[374094174,1753200647459,-460.0,0.0001758,2]
[374094175,1753200647469,-460.0,0.00017581,2]
[374094176,1753200647479,-465.56793574,0.00017581,2]
[374094177,1753200647488,-460.0,0.00017581,2]
[374094178,1753200647498,-460.0,0.00017581,2]
[374094179,1753200647507,-460.0,0.00017581,2]
[374094180,1753200647517,-460.0,0.00017581,2]
[374094181,1753200647527,-460.0,0.00017581,2]
[374094182,1753200647536,-460.0,0.00017581,2]
[374094183,1753200647546,-460.0,0.00017581,2]
[374094184,1753200647555,-460.0,0.00017581,2]
[374094185,1753200647565,-460.0,0.00017581,2]
[374094186,1753200647575,-460.0,0.00017581,2]
[374094187,1753200647584,-460.0,0.00017582,2]
[374094188,1753200647594,-460.0,0.00017582,2]
[374094189,1753200647603,-460.0,0.00017582,2]
[374094190,1753200647613,-460.0,0.00017582,2]
[374094191,1753200647623,-460.0,0.00017582,2]
[374094192,1753200647632,-460.0,0.00017582,2]
[374094193,1753200647642,-460.0,0.00017582,2]
[374094194,1753200647652,-460.0,0.00017582,2]
[374094195,1753200647662,-460.0,0.00017582,2]
[374094196,1753200647672,-460.0,0.00017582,2]
[374094197,1753200647681,-460.0,0.00017582,2]
[374094198,1753200647692,-460.0,0.00017582,2]
[374094199,1753200647702,-929.97,0.00017582,2]
[374094200,1753200647711,-460.0,0.00017582,2]
[374094201,1753200647725,-460.0,0.00017583,2]
[374094202,1753200647735,-442.85117061,0.00017583,2]
[374094203,1753200647744,-227.63,0.00017583,2]
[374094204,1753200647754,-460.0,0.00017583,2]
[374094205,1753200647763,-464.86,0.00017583,2]
[374094206,1753200647773,-460.0,0.00017583,2]
[374094207,1753200647782,-460.0,0.00017584,2]
[374094208,1753200647792,-460.0,0.00017584,2]
[374094209,1753200647801,-728.33,0.00017584,2]
[374094210,1753200647811,-460.0,0.00017584,2]
[374094211,1753200647820,-1000.0,0.00017621,2]
[374094212,1753200647829,-1000.0,0.00017621,2]
[374094213,1753200647839,-326.97247272,0.00017625,2]
[374094214,1753200647849,-460.0,0.00017854,2]
[374094215,1753200647858,-460.0,0.00017854,2]
[374094216,1753200647867,-460.0,0.00017855,2]
[374094217,1753200647877,-460.0,0.00017855,2]
[374094218,1753200647886,-460.0,0.00017855,2]
[374094219,1753200647896,-511.3,0.00017855,2]
[374094220,1753200647905,-460.0,0.00017855,2]
[374094221,1753200647915,-460.0,0.00017855,2]
[374094222,1753200647924,-460.0,0.00017855,2]
[374094223,1753200647934,-460.0,0.00017855,2]
[374094224,1753200647947,-460.0,0.00017855,2]
[374094225,1753200647956,-214.6393183,0.00017856,2]
[374094226,1753200647965,-12619.94447631,0.00017856,2]
[374094227,1753200647975,-460.0,0.00017856,2]
[374094228,1753200647985,-460.0,0.00017856,2]
[374094229,1753200647995,-460.0,0.00017856,2]
[374094230,1753200648005,-389.08592161,0.00017856,2]
[374094231,1753200648015,-460.0,0.00017856,2]
[374094232,1753200648024,-460.0,0.00017856,2]
[374094233,1753200648034,-929.97,0.00017856,2]
[374094234,1753200648044,-460.0,0.00017856,2]
[374094235,1753200648054,-150.43048576,0.00017857,2]
[374094236,1753200648064,-464.86,0.00017857,2]
[374094237,1753200648075,-460.0,0.00017857,2]
[374094238,1753200648085,-460.0,0.00017858,2]
[374094239,1753200648095,-728.33,0.00017858,2]
[374094240,1753200648105,-460.0,0.00017858,2]
[374094241,1753200648115,-642.42318948,0.0001787,2]
[374094242,1753200648125,-511.9,0.00018129,2]
[374094243,1753200648135,-460.0,0.00018129,2]
[374094244,1753200648145,-371.36308635,0.00018129,2]
[374094245,1753200648154,-460.0,0.00018129,2]
[374094246,1753200648164,-460.0,0.00018129,2]
[374094247,1753200648174,-460.0,0.00018129,2]
[374094248,1753200648184,-460.0,0.0001813,2]
[374094249,1753200648198,-460.0,0.0001813,2]
[374094250,1753200648208,-259.50358371,0.0001813,2]
[374094251,1753200648218,-171.48,0.0001813,2]
[374094252,1753200648228,-577.45,0.0001813,2]
[374094253,1753200648238,-460.0,0.0001813,2]
[374094254,1753200648248,-929.97,0.0001813,2]
[374094255,1753200648258,-460.0,0.0001813,2]
[374094256,1753200648268,-464.86,0.00018131,2]
[374094257,1753200648279,-460.0,0.00018131,2]
[374094258,1753200648289,-460.0,0.00018132,2]
[374094259,1753200648299,-728.33,0.00018132,2]
[374094260,1753200648309,-460.0,0.00018132,2]
[374094261,1753200648319,-172.0,0.00018192,3]
[374094262,1753200648329,-460.0,0.00018403,2]
[374094263,1753200648338,-546.55,0.00018403,2]
[374094264,1753200648348,-460.0,0.00018403,2]
[374094265,1753200648358,-460.0,0.00018403,2]
[374094266,1753200648368,-460.0,0.00018404,2]
[374094267,1753200648379,-929.97,0.00018404,2]